[Event "January 9 Early 2024"]
[Site "https://www.chess.com"]
[Date "2024.01.11"]
[Round "7"]
[White "Popov, Konstantin"]
[Black "Skliarov, Viktor"]
[Result "1-0"]
[Board "62"]
[TimeControl "180+1"]
[WhiteFideId "34137910"]
[BlackFideId "14106736"]
[WhiteElo "2910"]
[BlackElo "2680"]
[WhiteTeam "FID"]
[BlackTeam "UKR"]
[WhiteClock "0:01:29"]
[BlackClock "0:00:02"]

1. e4 {[%clk 0:03:00]}  c5 {[%clk 0:02:59]} 2. Nf3 {[%clk 0:03:01]}  Nc6 {[%clk 0:03:00]} 3. d4 {[%clk 0:03:01]}  cxd4 {[%clk 0:03:00]} 4. Nxd4 {[%clk 0:03:02]}  Nf6 {[%clk 0:03:01]} 5. Nc3 {[%clk 0:03:02]}  e5 {[%clk 0:03:02]} 6. Ndb5 {[%clk 0:03:03]}  d6 {[%clk 0:03:02]} 7. Bg5 {[%clk 0:03:03]}  a6 {[%clk 0:03:03]} 8. Na3 {[%clk 0:03:04]}  b5 {[%clk 0:03:04]} 9. Bxf6 {[%clk 0:03:05]}  gxf6 {[%clk 0:03:04]} 10. Nd5 {[%clk 0:03:06]}  f5 {[%clk 0:03:05]} 11. g3 {[%clk 0:03:06]}  fxe4 {[%clk 0:03:02]} 12. Bg2 {[%clk 0:03:06]}  Bg7 {[%clk 0:03:02]} 13. Bxe4 {[%clk 0:03:05]}  Be6 {[%clk 0:03:03]} 14. Qh5 {[%clk 0:03:05]}  Rc8 {[%clk 0:02:58]} 15. Rd1 {[%clk 0:03:05]}  Ne7 {[%clk 0:02:45]} 16. c3 {[%clk 0:03:05]}  Rc5 {[%clk 0:02:20]} 17. Nxe7 {[%clk 0:03:04]}  Qxe7 {[%clk 0:02:20]} 18. Nc2 {[%clk 0:03:05]}  d5 {[%clk 0:02:08]} 19. Bf5 {[%clk 0:03:03]}  d4 {[%clk 0:02:02]} 20. Bxe6 {[%clk 0:03:01]}  Qxe6 {[%clk 0:02:00]} 21. O-O {[%clk 0:03:02]}  Qg6 {[%clk 0:01:35]} 22. Qe2 {[%clk 0:02:48]}  dxc3 {[%clk 0:01:34]} 23. bxc3 {[%clk 0:02:48]}  O-O {[%clk 0:01:24]} 24. Ne3 {[%clk 0:02:47]}  Qe4 {[%clk 0:00:47]} 25. Rd6 {[%clk 0:02:36]}  Rxc3 {[%clk 0:00:33]} 26. Rxa6 {[%clk 0:02:35]}  b4 {[%clk 0:00:33]} 27. Qh5 {[%clk 0:02:19]}  Rxe3 {[%clk 0:00:17]} 28. fxe3 {[%clk 0:02:20]}  Qxe3+ {[%clk 0:00:17]} 29. Kg2 {[%clk 0:02:06]}  e4 {[%clk 0:00:18]} 30. Qd1 {[%clk 0:01:55]}  Bd4 {[%clk 0:00:14]} 31. Rd6 {[%clk 0:01:51]}  Bc3 {[%clk 0:00:10]} 32. Qg4+ {[%clk 0:01:47]}  Bg7 {[%clk 0:00:09]} 33. Rd5 {[%clk 0:01:40]}  Qa3 {[%clk 0:00:06]} 34. Rf2 {[%clk 0:01:36]}  e3 {[%clk 0:00:06]} 35. Re2 {[%clk 0:01:36]}  Qc3 {[%clk 0:00:05]} 36. Qe4 {[%clk 0:01:30]}  Bh6 {[%clk 0:00:03]} 37. Rh5 {[%clk 0:01:29]}  Bg7 {[%clk 0:00:02]} 38. Qxh7# {[%clk 0:01:29]} 1-0

[Event "January 9 Early 2024"]
[Site "https://www.chess.com"]
[Date "2024.01.11"]
[Round "7"]
[White "Hernandez Santos, David Ale"]
[Black "Szyszylo, Rafal"]
[Result "1-0"]
[Board "66"]
[TimeControl "180+1"]
[WhiteFideId "5132002"]
[BlackFideId "1109626"]
[WhiteElo "2027"]
[BlackElo "2387"]
[WhiteTeam "MEX"]
[BlackTeam "POL"]
[WhiteClock "0:01:04"]
[BlackClock "0:00:01"]

1. d4 {[%clk 0:02:59]}  g6 {[%clk 0:02:58]} 2. Nc3 {[%clk 0:03:00]}  d6 {[%clk 0:02:57]} 3. Bf4 {[%clk 0:03:00]}  Bg7 {[%clk 0:02:55]} 4. e3 {[%clk 0:03:00]}  Nc6 {[%clk 0:02:54]} 5. h4 {[%clk 0:03:01]}  Nf6 {[%clk 0:02:47]} 6. h5 {[%clk 0:03:00]}  Nxh5 {[%clk 0:02:47]} 7. Rxh5 {[%clk 0:03:00]}  gxh5 {[%clk 0:02:47]} 8. Qxh5 {[%clk 0:03:00]}  e5 {[%clk 0:02:44]} 9. Bg5 {[%clk 0:02:37]}  Qd7 {[%clk 0:02:40]} 10. Nd5 {[%clk 0:02:34]}  exd4 {[%clk 0:02:32]} 11. Bf6 {[%clk 0:02:31]}  Nb4 {[%clk 0:01:15]} 12. Bxg7 {[%clk 0:02:23]}  Nxd5 {[%clk 0:01:15]} 13. Bxh8 {[%clk 0:02:22]}  Qe6 {[%clk 0:01:10]} 14. Bc4 {[%clk 0:02:18]}  c6 {[%clk 0:01:10]} 15. Bxd4 {[%clk 0:02:13]}  Bd7 {[%clk 0:01:06]} 16. Bxd5 {[%clk 0:02:08]}  cxd5 {[%clk 0:01:06]} 17. Qxh7 {[%clk 0:02:05]}  O-O-O {[%clk 0:01:06]} 18. Ne2 {[%clk 0:02:01]}  Qg4 {[%clk 0:01:05]} 19. Qxf7 {[%clk 0:01:57]}  Qxg2 {[%clk 0:01:03]} 20. O-O-O {[%clk 0:01:50]}  Bg4 {[%clk 0:01:03]} 21. Rg1 {[%clk 0:01:44]}  Qh3 {[%clk 0:00:47]} 22. Nf4 {[%clk 0:01:24]}  Qf3 {[%clk 0:00:45]} 23. Rxg4 {[%clk 0:01:04]}  Qxg4 {[%clk 0:00:45]} 24. Ne6 {[%clk 0:01:03]}  Qg1+ {[%clk 0:00:02]} 25. Kd2 {[%clk 0:01:03]}  Qxf2+ {[%clk 0:00:02]} 26. Qxf2 {[%clk 0:01:04]}  Rd7 {[%clk 0:00:01]} 27. Qf8+ {[%clk 0:01:04]} 1-0

[Event "January 9 Early 2024"]
[Site "https://www.chess.com"]
[Date "2024.01.11"]
[Round "7"]
[White "Malek, Jan"]
[Black "Narayanan S L"]
[Result "1-0"]
[Board "67"]
[TimeControl "180+1"]
[WhiteFideId "21864080"]
[BlackFideId "5058422"]
[WhiteElo "2728"]
[BlackElo "2988"]
[WhiteTeam "POL"]
[BlackTeam "IND"]
[WhiteClock "0:00:18"]
[BlackClock "0:01:30"]

1. c4 {[%clk 0:03:00]}  a6 {[%clk 0:02:52]} 2. Nc3 {[%clk 0:02:55]}  c6 {[%clk 0:02:51]} 3. a4 {[%clk 0:02:50]}  a5 {[%clk 0:02:51]} 4. d4 {[%clk 0:02:49]}  g6 {[%clk 0:02:50]} 5. e4 {[%clk 0:02:49]}  Bg7 {[%clk 0:02:50]} 6. Be3 {[%clk 0:02:48]}  d6 {[%clk 0:02:51]} 7. h4 {[%clk 0:02:48]}  h5 {[%clk 0:02:51]} 8. Be2 {[%clk 0:02:47]}  Na6 {[%clk 0:02:50]} 9. Nf3 {[%clk 0:02:46]}  Bg4 {[%clk 0:02:50]} 10. Ng5 {[%clk 0:02:45]}  Bxe2 {[%clk 0:02:50]} 11. Qxe2 {[%clk 0:02:45]}  e5 {[%clk 0:02:50]} 12. O-O-O {[%clk 0:02:39]}  Qe7 {[%clk 0:02:47]} 13. Kb1 {[%clk 0:02:32]}  Nf6 {[%clk 0:02:47]} 14. f3 {[%clk 0:02:14]}  O-O {[%clk 0:02:44]} 15. g4 {[%clk 0:01:51]}  Nb4 {[%clk 0:02:28]} 16. d5 {[%clk 0:01:45]}  Rfc8 {[%clk 0:02:14]} 17. Rhg1 {[%clk 0:01:38]}  Qc7 {[%clk 0:01:56]} 18. Rc1 {[%clk 0:01:25]}  Qd7 {[%clk 0:01:52]} 19. Bd2 {[%clk 0:01:11]}  Rc7 {[%clk 0:01:48]} 20. Be3 {[%clk 0:00:59]}  cxd5 {[%clk 0:01:43]} 21. cxd5 {[%clk 0:00:56]}  Rac8 {[%clk 0:01:43]} 22. Nb5 {[%clk 0:00:55]}  Rxc1+ {[%clk 0:01:42]} 23. Rxc1 {[%clk 0:00:45]}  Rxc1+ {[%clk 0:01:42]} 24. Bxc1 {[%clk 0:00:46]}  hxg4 {[%clk 0:01:42]} 25. fxg4 {[%clk 0:00:46]}  Nxg4 {[%clk 0:01:43]} 26. Nxd6 {[%clk 0:00:42]}  Qxa4 {[%clk 0:01:41]} 27. Qc4 {[%clk 0:00:32]}  Qd1 {[%clk 0:01:37]} 28. Ndxf7 {[%clk 0:00:19]}  Ne3 {[%clk 0:01:30]} 29. Qc8+ {[%clk 0:00:18]}  Bf8 {[%clk 0:01:30]} 30. Nh6+ {[%clk 0:00:18]}  Kg7 {[%clk 0:01:30]} 31. Qd7+ {[%clk 0:00:18]} 1-0

[Event "January 9 Early 2024"]
[Site "https://www.chess.com"]
[Date "2024.01.11"]
[Round "7"]
[White "Zhu, Hengyi"]
[Black "Sierra Vallina, Lionel"]
[Result "1-0"]
[Board "68"]
[TimeControl "180+1"]
[WhiteFideId "8611211"]
[BlackFideId "54559774"]
[WhiteElo "2788"]
[BlackElo "2628"]
[WhiteTeam "CHN"]
[BlackTeam "ESP"]
[WhiteClock "0:00:49"]
[BlackClock "0:00:28"]

1. e4 {[%clk 0:02:56]}  c6 {[%clk 0:02:58]} 2. Nf3 {[%clk 0:02:55]}  d5 {[%clk 0:02:59]} 3. d3 {[%clk 0:02:55]}  e6 {[%clk 0:02:58]} 4. Nc3 {[%clk 0:02:54]}  Nf6 {[%clk 0:02:58]} 5. e5 {[%clk 0:02:52]}  Nfd7 {[%clk 0:02:57]} 6. d4 {[%clk 0:02:53]}  c5 {[%clk 0:02:58]} 7. dxc5 {[%clk 0:02:51]}  Bxc5 {[%clk 0:02:56]} 8. Bd3 {[%clk 0:02:51]}  Nc6 {[%clk 0:02:56]} 9. Bf4 {[%clk 0:02:48]}  Qc7 {[%clk 0:02:55]} 10. O-O {[%clk 0:02:46]}  f6 {[%clk 0:02:47]} 11. Nb5 {[%clk 0:02:42]}  Qb8 {[%clk 0:02:47]} 12. Bg3 {[%clk 0:02:38]}  fxe5 {[%clk 0:02:44]} 13. Ng5 {[%clk 0:02:32]}  Nf6 {[%clk 0:02:36]} 14. c4 {[%clk 0:01:46]}  a6 {[%clk 0:02:33]} 15. Nc3 {[%clk 0:01:44]}  Qd6 {[%clk 0:01:46]} 16. Bxh7 {[%clk 0:01:28]}  Nxh7 {[%clk 0:01:30]} 17. Qh5+ {[%clk 0:01:27]}  Kd7 {[%clk 0:01:30]} 18. Nf7 {[%clk 0:01:27]}  Qf8 {[%clk 0:01:26]} 19. cxd5 {[%clk 0:01:20]}  Nf6 {[%clk 0:01:12]} 20. dxc6+ {[%clk 0:01:16]}  Kxc6 {[%clk 0:01:08]} 21. Qxh8 {[%clk 0:01:13]}  Qxf7 {[%clk 0:01:08]} 22. Rac1 {[%clk 0:01:12]}  b5 {[%clk 0:00:55]} 23. b4 {[%clk 0:01:09]}  Bb7 {[%clk 0:00:49]} 24. Qh4 {[%clk 0:01:05]}  g5 {[%clk 0:00:37]} 25. Qxg5 {[%clk 0:01:01]}  Be7 {[%clk 0:00:35]} 26. Nd5+ {[%clk 0:00:55]}  Kd6 {[%clk 0:00:28]} 27. Qxe5+ {[%clk 0:00:53]}  Kd7 {[%clk 0:00:28]} 28. Rc7+ {[%clk 0:00:49]}  Kd8 {[%clk 0:00:28]} 29. Rxe7 {[%clk 0:00:49]} 1-0

[Event "January 9 Early 2024"]
[Site "https://www.chess.com"]
[Date "2024.01.11"]
[Round "7"]
[White "Nigalidze, Gaioz"]
[Black "Ovezdurdyyeva, Jemal"]
[Result "0-1"]
[Board "71"]
[TimeControl "180+1"]
[WhiteFideId "13603078"]
[BlackFideId "14001888"]
[WhiteElo "2649"]
[BlackElo "2469"]
[WhiteTeam "GEO"]
[BlackTeam "TKM"]
[WhiteClock "0:00:02"]
[BlackClock "0:01:11"]

1. d4 {[%clk 0:03:00]}  Nf6 {[%clk 0:02:57]} 2. Nf3 {[%clk 0:02:59]}  b6 {[%clk 0:02:54]} 3. c4 {[%clk 0:02:58]}  Bb7 {[%clk 0:02:52]} 4. Nc3 {[%clk 0:02:58]}  e6 {[%clk 0:02:52]} 5. a3 {[%clk 0:02:57]}  d5 {[%clk 0:02:52]} 6. cxd5 {[%clk 0:02:56]}  Nxd5 {[%clk 0:02:49]} 7. Bd2 {[%clk 0:02:55]}  Bd6 {[%clk 0:02:44]} 8. g3 {[%clk 0:02:41]}  O-O {[%clk 0:02:33]} 9. Bg2 {[%clk 0:02:36]}  c5 {[%clk 0:02:34]} 10. dxc5 {[%clk 0:02:25]}  Bxc5 {[%clk 0:02:32]} 11. O-O {[%clk 0:02:24]}  Nd7 {[%clk 0:02:25]} 12. b4 {[%clk 0:02:12]}  Be7 {[%clk 0:02:23]} 13. Rc1 {[%clk 0:02:10]}  a5 {[%clk 0:02:18]} 14. Nxd5 {[%clk 0:01:41]}  Bxd5 {[%clk 0:02:17]} 15. Qc2 {[%clk 0:01:33]}  axb4 {[%clk 0:02:11]} 16. Bxb4 {[%clk 0:01:33]}  Bxb4 {[%clk 0:02:08]} 17. axb4 {[%clk 0:01:33]}  Ra2 {[%clk 0:02:07]} 18. Qd3 {[%clk 0:01:27]}  Qe7 {[%clk 0:02:05]} 19. Rc7 {[%clk 0:01:08]}  Qd6 {[%clk 0:01:58]} 20. Ng5 {[%clk 0:00:43]}  g6 {[%clk 0:01:41]} 21. Bxd5 {[%clk 0:00:16]}  exd5 {[%clk 0:01:41]} 22. Rcc1 {[%clk 0:00:08]}  Ne5 {[%clk 0:01:38]} 23. Qe3 {[%clk 0:00:04]}  Nc4 {[%clk 0:01:30]} 24. Qd4 {[%clk 0:00:03]}  Rd2 {[%clk 0:01:27]} 25. Qc3 {[%clk 0:00:03]}  Rxe2 {[%clk 0:01:25]} 26. Nf3 {[%clk 0:00:03]}  Rb2 {[%clk 0:01:15]} 27. Rfd1 {[%clk 0:00:02]}  Rd8 {[%clk 0:01:11]} 0-1

[Event "January 9 Early 2024"]
[Site "https://www.chess.com"]
[Date "2024.01.11"]
[Round "7"]
[White "Materia, Marco"]
[Black "Lund, Gunnar"]
[Result "1-0"]
[Board "73"]
[TimeControl "180+1"]
[WhiteFideId "45150451"]
[BlackFideId "1520814"]
[WhiteElo "2822"]
[BlackElo "2660"]
[WhiteTeam "FRA"]
[BlackTeam "NOR"]
[WhiteClock "0:01:14"]
[BlackClock "0:00:05"]

1. Nf3 {[%clk 0:03:00]}  d5 {[%clk 0:02:59]} 2. e3 {[%clk 0:03:00]}  Nf6 {[%clk 0:02:59]} 3. c4 {[%clk 0:03:00]}  e6 {[%clk 0:02:59]} 4. Nc3 {[%clk 0:03:00]}  Be7 {[%clk 0:02:59]} 5. b3 {[%clk 0:02:59]}  O-O {[%clk 0:02:56]} 6. Bb2 {[%clk 0:03:00]}  b6 {[%clk 0:02:56]} 7. Be2 {[%clk 0:02:57]}  Bb7 {[%clk 0:02:55]} 8. O-O {[%clk 0:02:57]}  dxc4 {[%clk 0:02:56]} 9. bxc4 {[%clk 0:02:57]}  c5 {[%clk 0:02:56]} 10. d3 {[%clk 0:02:53]}  Nc6 {[%clk 0:02:56]} 11. Nd2 {[%clk 0:02:46]}  Rc8 {[%clk 0:02:56]} 12. Nce4 {[%clk 0:02:45]}  Nb4 {[%clk 0:02:50]} 13. Nxf6+ {[%clk 0:02:31]}  Bxf6 {[%clk 0:02:51]} 14. Bxf6 {[%clk 0:02:31]}  Qxf6 {[%clk 0:02:50]} 15. a3 {[%clk 0:02:29]}  Nc6 {[%clk 0:02:50]} 16. Bf3 {[%clk 0:02:28]}  Rfd8 {[%clk 0:02:47]} 17. Qe2 {[%clk 0:02:28]}  Qe7 {[%clk 0:02:46]} 18. Rfd1 {[%clk 0:02:27]}  Ne5 {[%clk 0:02:46]} 19. Bxb7 {[%clk 0:02:27]}  Qxb7 {[%clk 0:02:47]} 20. Nf1 {[%clk 0:02:22]}  Rd7 {[%clk 0:02:46]} 21. f4 {[%clk 0:02:21]}  Nc6 {[%clk 0:02:45]} 22. Ra2 {[%clk 0:02:19]}  Rcd8 {[%clk 0:02:45]} 23. Ng3 {[%clk 0:02:13]}  Na5 {[%clk 0:02:40]} 24. Rad2 {[%clk 0:02:12]}  b5 {[%clk 0:02:37]} 25. cxb5 {[%clk 0:02:11]}  Qxb5 {[%clk 0:02:38]} 26. f5 {[%clk 0:02:10]}  exf5 {[%clk 0:02:28]} 27. Nxf5 {[%clk 0:02:09]}  c4 {[%clk 0:02:28]} 28. Nd4 {[%clk 0:01:51]}  cxd3 {[%clk 0:02:01]} 29. Rxd3 {[%clk 0:01:51]}  Qe5 {[%clk 0:01:55]} 30. h3 {[%clk 0:01:31]}  h6 {[%clk 0:01:55]} 31. Qg4 {[%clk 0:01:29]}  Qg5 {[%clk 0:01:44]} 32. Qe4 {[%clk 0:01:27]}  Nc4 {[%clk 0:01:39]} 33. Nf3 {[%clk 0:01:23]}  Rxd3 {[%clk 0:00:22]} 34. Rxd3 {[%clk 0:01:22]}  Rxd3 {[%clk 0:00:05]} 35. Qe8+ {[%clk 0:01:14]}  Kh7 {[%clk 0:00:04]} 36. Nxg5+ {[%clk 0:01:14]}  hxg5 {[%clk 0:00:05]} 37. Qe4+ {[%clk 0:01:14]} 1-0

[Event "January 9 Early 2024"]
[Site "https://www.chess.com"]
[Date "2024.01.11"]
[Round "7"]
[White "Kekic, Armin"]
[Black "Parfenov, Viktor N."]
[Result "0-1"]
[Board "75"]
[TimeControl "180+1"]
[WhiteFideId "14401274"]
[BlackFideId "4165969"]
[WhiteElo "2331"]
[BlackElo "2511"]
[WhiteTeam "BIH"]
[BlackTeam "RUS"]
[WhiteClock "0:00:38"]
[BlackClock "0:00:51"]

1. e4 {[%clk 0:03:00]}  e6 {[%clk 0:02:55]} 2. d4 {[%clk 0:02:59]}  d5 {[%clk 0:02:56]} 3. exd5 {[%clk 0:03:00]}  exd5 {[%clk 0:02:55]} 4. Bd3 {[%clk 0:03:01]}  c5 {[%clk 0:02:53]} 5. c3 {[%clk 0:02:59]}  Nf6 {[%clk 0:02:50]} 6. Ne2 {[%clk 0:02:57]}  Nc6 {[%clk 0:02:49]} 7. O-O {[%clk 0:02:51]}  c4 {[%clk 0:02:48]} 8. Bc2 {[%clk 0:02:50]}  Bd6 {[%clk 0:02:48]} 9. Nd2 {[%clk 0:02:48]}  O-O {[%clk 0:02:47]} 10. Ng3 {[%clk 0:02:47]}  g6 {[%clk 0:02:42]} 11. h3 {[%clk 0:02:44]}  Re8 {[%clk 0:02:05]} 12. Nf3 {[%clk 0:02:43]}  Kg7 {[%clk 0:02:01]} 13. Bg5 {[%clk 0:02:39]}  h6 {[%clk 0:01:59]} 14. Bxf6+ {[%clk 0:02:39]}  Qxf6 {[%clk 0:01:58]} 15. Re1 {[%clk 0:02:32]}  Bd7 {[%clk 0:01:54]} 16. Nh2 {[%clk 0:02:29]}  h5 {[%clk 0:01:51]} 17. Nf3 {[%clk 0:02:26]}  b5 {[%clk 0:01:48]} 18. a3 {[%clk 0:02:26]}  a5 {[%clk 0:01:47]} 19. Nf1 {[%clk 0:02:12]}  Rxe1 {[%clk 0:01:42]} 20. Nxe1 {[%clk 0:02:05]}  Re8 {[%clk 0:01:41]} 21. Qf3 {[%clk 0:01:46]}  Qxf3 {[%clk 0:01:34]} 22. Nxf3 {[%clk 0:01:47]}  Re2 {[%clk 0:01:34]} 23. Rc1 {[%clk 0:01:41]}  b4 {[%clk 0:01:31]} 24. axb4 {[%clk 0:01:41]}  axb4 {[%clk 0:01:32]} 25. N1d2 {[%clk 0:01:26]}  Bf4 {[%clk 0:01:25]} 26. Rd1 {[%clk 0:01:27]}  Nxd4 {[%clk 0:01:14]} 27. cxd4 {[%clk 0:01:16]}  c3 {[%clk 0:01:14]} 28. bxc3 {[%clk 0:01:14]}  bxc3 {[%clk 0:01:14]} 29. g3 {[%clk 0:00:51]}  Bxd2 {[%clk 0:01:12]} 30. Nxd2 {[%clk 0:00:52]}  cxd2 {[%clk 0:01:09]} 31. Kf1 {[%clk 0:00:45]}  Bb5 {[%clk 0:01:09]} 32. Kg2 {[%clk 0:00:45]}  g5 {[%clk 0:00:58]} 33. Kf3 {[%clk 0:00:43]}  g4+ {[%clk 0:00:51]} 34. hxg4 {[%clk 0:00:43]}  hxg4+ {[%clk 0:00:51]} 35. Kxg4 {[%clk 0:00:41]}  Rxf2 {[%clk 0:00:52]} 36. Bb3 {[%clk 0:00:38]}  Be2+ {[%clk 0:00:51]} 0-1

[Event "January 9 Early 2024"]
[Site "https://www.chess.com"]
[Date "2024.01.11"]
[Round "7"]
[White "Durarbayli, Vasif"]
[Black "Rasulov, Vugar"]
[Result "1-0"]
[Board "77"]
[TimeControl "180+1"]
[WhiteFideId "13402935"]
[BlackFideId "13402390"]
[WhiteElo "2827"]
[BlackElo "2975"]
[WhiteTeam "AZE"]
[BlackTeam "AZE"]
[WhiteClock "0:01:05"]
[BlackClock "0:00:21"]

1. e4 {[%clk 0:03:00]}  e5 {[%clk 0:03:00]} 2. Nc3 {[%clk 0:02:59]}  Nf6 {[%clk 0:02:57]} 3. d4 {[%clk 0:02:59]}  exd4 {[%clk 0:02:56]} 4. Qxd4 {[%clk 0:03:00]}  Nc6 {[%clk 0:02:56]} 5. Qd3 {[%clk 0:03:01]}  d5 {[%clk 0:02:55]} 6. Bf4 {[%clk 0:02:58]}  d4 {[%clk 0:02:41]} 7. Nb5 {[%clk 0:02:58]}  Bd6 {[%clk 0:02:30]} 8. Bxd6 {[%clk 0:02:30]}  cxd6 {[%clk 0:02:31]} 9. Nxd4 {[%clk 0:02:30]}  O-O {[%clk 0:02:24]} 10. O-O-O {[%clk 0:02:30]}  Qa5 {[%clk 0:02:01]} 11. a3 {[%clk 0:02:28]}  Ne5 {[%clk 0:01:55]} 12. Qe3 {[%clk 0:02:20]}  Qb6 {[%clk 0:01:53]} 13. h3 {[%clk 0:02:11]}  Re8 {[%clk 0:01:51]} 14. Nge2 {[%clk 0:02:01]}  Be6 {[%clk 0:01:33]} 15. Nc3 {[%clk 0:01:58]}  Bc4 {[%clk 0:01:27]} 16. Nf5 {[%clk 0:01:46]}  Qxe3+ {[%clk 0:01:11]} 17. Nxe3 {[%clk 0:01:47]}  Bxf1 {[%clk 0:00:55]} 18. Rhxf1 {[%clk 0:01:48]}  Re6 {[%clk 0:00:53]} 19. Rd2 {[%clk 0:01:43]}  Rc8 {[%clk 0:00:47]} 20. f3 {[%clk 0:01:43]}  a6 {[%clk 0:00:44]} 21. Rfd1 {[%clk 0:01:43]}  Rc6 {[%clk 0:00:45]} 22. Ne2 {[%clk 0:01:38]}  Rb6 {[%clk 0:00:32]} 23. Nf4 {[%clk 0:01:34]}  Re8 {[%clk 0:00:32]} 24. Rxd6 {[%clk 0:01:33]}  Rc6 {[%clk 0:00:27]} 25. Rxc6 {[%clk 0:01:30]}  Nxc6 {[%clk 0:00:27]} 26. Nf5 {[%clk 0:01:25]}  g6 {[%clk 0:00:27]} 27. Nd6 {[%clk 0:01:25]}  Re7 {[%clk 0:00:27]} 28. Nd5 {[%clk 0:01:25]}  Nxd5 {[%clk 0:00:28]} 29. Rxd5 {[%clk 0:01:16]}  h5 {[%clk 0:00:28]} 30. Kd2 {[%clk 0:01:14]}  h4 {[%clk 0:00:27]} 31. Ke3 {[%clk 0:01:13]}  Ne5 {[%clk 0:00:26]} 32. b3 {[%clk 0:01:14]}  Kg7 {[%clk 0:00:24]} 33. c4 {[%clk 0:01:12]}  Nd7 {[%clk 0:00:24]} 34. b4 {[%clk 0:01:11]}  b6 {[%clk 0:00:21]} 35. f4 {[%clk 0:01:09]}  Nf6 {[%clk 0:00:19]} 36. Rd1 {[%clk 0:01:06]}  Nh5 {[%clk 0:00:19]} 37. c5 {[%clk 0:01:04]}  bxc5 {[%clk 0:00:20]} 38. bxc5 {[%clk 0:01:05]}  Rc7 {[%clk 0:00:21]} 39. Ne8+ {[%clk 0:01:05]} 1-0

[Event "January 9 Early 2024"]
[Site "https://www.chess.com"]
[Date "2024.01.11"]
[Round "7"]
[White "Wantiez, Fabrice"]
[Black "Demin, Vladimir"]
[Result "1-0"]
[Board "78"]
[TimeControl "180+1"]
[WhiteFideId "202274"]
[BlackFideId "4167457"]
[WhiteElo "2416"]
[BlackElo "2568"]
[WhiteTeam "BEL"]
[BlackTeam "RUS"]
[WhiteClock "0:00:40"]
[BlackClock "0:00:41"]

1. e4 {[%clk 0:02:57]}  e5 {[%clk 0:02:59]} 2. Nf3 {[%clk 0:02:57]}  Nc6 {[%clk 0:02:59]} 3. Bb5 {[%clk 0:02:57]}  a6 {[%clk 0:02:59]} 4. Ba4 {[%clk 0:02:58]}  Nf6 {[%clk 0:02:59]} 5. O-O {[%clk 0:02:58]}  Nxe4 {[%clk 0:02:59]} 6. d4 {[%clk 0:02:57]}  b5 {[%clk 0:02:59]} 7. d5 {[%clk 0:02:58]}  Ne7 {[%clk 0:02:49]} 8. Nxe5 {[%clk 0:02:42]}  bxa4 {[%clk 0:02:47]} 9. Re1 {[%clk 0:02:29]}  Nf6 {[%clk 0:02:46]} 10. d6 {[%clk 0:02:23]}  cxd6 {[%clk 0:02:46]} 11. Nc4 {[%clk 0:02:13]}  Qc7 {[%clk 0:02:29]} 12. Nxd6+ {[%clk 0:02:13]}  Kd8 {[%clk 0:02:29]} 13. Nxf7+ {[%clk 0:02:14]}  Ke8 {[%clk 0:02:30]} 14. Nd6+ {[%clk 0:02:14]}  Kd8 {[%clk 0:02:30]} 15. Bf4 {[%clk 0:02:06]}  Qb6 {[%clk 0:02:13]} 16. Nc3 {[%clk 0:02:04]}  Rg8 {[%clk 0:02:05]} 17. Nf7+ {[%clk 0:02:00]}  Ke8 {[%clk 0:02:05]} 18. Nd6+ {[%clk 0:02:01]}  Kd8 {[%clk 0:02:06]} 19. Qf3 {[%clk 0:01:52]}  Ra7 {[%clk 0:02:01]} 20. Nf7+ {[%clk 0:01:49]}  Ke8 {[%clk 0:02:01]} 21. Nd6+ {[%clk 0:01:50]}  Kd8 {[%clk 0:02:02]} 22. Rad1 {[%clk 0:01:46]}  Bb7 {[%clk 0:01:59]} 23. Qe2 {[%clk 0:01:30]}  Qc6 {[%clk 0:01:51]} 24. f3 {[%clk 0:01:27]}  a5 {[%clk 0:01:40]} 25. Qf2 {[%clk 0:01:18]}  Ra8 {[%clk 0:01:38]} 26. Ncb5 {[%clk 0:01:16]}  Ba6 {[%clk 0:01:11]} 27. Nf7+ {[%clk 0:01:15]}  Kc8 {[%clk 0:01:11]} 28. Nbd6+ {[%clk 0:01:15]}  Kb8 {[%clk 0:01:11]} 29. Nc4+ {[%clk 0:01:00]}  Kc8 {[%clk 0:01:06]} 30. Ncd6+ {[%clk 0:00:48]}  Kb8 {[%clk 0:01:04]} 31. Nb5+ {[%clk 0:00:44]}  Kc8 {[%clk 0:01:04]} 32. Na7+ {[%clk 0:00:44]}  Rxa7 {[%clk 0:00:59]} 33. Qxa7 {[%clk 0:00:45]}  d6 {[%clk 0:00:45]} 34. Nxd6+ {[%clk 0:00:43]}  Kd8 {[%clk 0:00:44]} 35. Nf5+ {[%clk 0:00:40]}  Ke8 {[%clk 0:00:41]} 36. Rxe7+ {[%clk 0:00:40]} 1-0

[Event "January 9 Early 2024"]
[Site "https://www.chess.com"]
[Date "2024.01.11"]
[Round "7"]
[White "Modric, Nesa"]
[Black "Alexanian, Nelli"]
[Result "0-1"]
[Board "81"]
[TimeControl "180+1"]
[WhiteFideId "922579"]
[BlackFideId "4170539"]
[WhiteElo "2190"]
[BlackElo "1981"]
[WhiteTeam "SRB"]
[BlackTeam "TUR"]
[WhiteClock "0:00:06"]
[BlackClock "0:01:01"]

1. d4 {[%clk 0:02:59]}  Nf6 {[%clk 0:02:59]} 2. Bg5 {[%clk 0:02:58]}  c5 {[%clk 0:02:52]} 3. d5 {[%clk 0:02:52]}  b5 {[%clk 0:02:49]} 4. g3 {[%clk 0:02:50]}  Ne4 {[%clk 0:02:42]} 5. Bf4 {[%clk 0:02:46]}  g5 {[%clk 0:02:40]} 6. Bc1 {[%clk 0:02:44]}  Bg7 {[%clk 0:02:33]} 7. Bg2 {[%clk 0:02:43]}  Qa5+ {[%clk 0:02:24]} 8. c3 {[%clk 0:02:37]}  f5 {[%clk 0:01:56]} 9. Bxe4 {[%clk 0:02:26]}  fxe4 {[%clk 0:01:55]} 10. Bxg5 {[%clk 0:02:25]}  d6 {[%clk 0:01:53]} 11. Bd2 {[%clk 0:02:19]}  Na6 {[%clk 0:01:44]} 12. e3 {[%clk 0:02:13]}  h5 {[%clk 0:01:43]} 13. h4 {[%clk 0:02:11]}  Bg4 {[%clk 0:01:41]} 14. Ne2 {[%clk 0:02:06]}  Bf3 {[%clk 0:01:38]} 15. Rg1 {[%clk 0:01:54]}  Nc7 {[%clk 0:01:38]} 16. Na3 {[%clk 0:01:32]}  Nxd5 {[%clk 0:01:33]} 17. c4 {[%clk 0:01:31]}  Nb4 {[%clk 0:01:32]} 18. Nxb5 {[%clk 0:01:29]}  Bxb2 {[%clk 0:01:24]} 19. a3 {[%clk 0:01:29]}  Nd3+ {[%clk 0:01:22]} 20. Kf1 {[%clk 0:01:25]}  Qd8 {[%clk 0:01:18]} 21. Rb1 {[%clk 0:01:19]}  Qd7 {[%clk 0:01:17]} 22. g4 {[%clk 0:00:50]}  Bxg4 {[%clk 0:01:11]} 23. Rxb2 {[%clk 0:00:45]}  Bh3+ {[%clk 0:01:08]} 24. Rg2 {[%clk 0:00:42]}  Qg4 {[%clk 0:01:07]} 25. Nc7+ {[%clk 0:00:09]}  Kf7 {[%clk 0:01:03]} 26. Ng3 {[%clk 0:00:06]}  Qxd1+ {[%clk 0:01:01]} 0-1